bitfinex-derivatives/quotes_SOLF0:USTF0_20250428
["timestamp","ask_amount","ask_price","bid_price","bid_amount"]
[1745812913615,6.722,148.72,148.68,6.7235]
[1745812913811,31.66040697,148.75,148.66,7.20040697]
[1745812914114,6.7208,148.75,148.7,7.20040697]
[1745812915115,6.7202,148.76,148.72,6.7216]
[1745812915518,6.7202,148.76,148.7,11.51328882]
[1745812915717,24.44,148.79,148.7,11.51328882]
[1745812915917,11.51328882,148.82,148.71,5.9665]
[1745812916114,24.44,148.81,148.71,5.9665]
[1745812916314,6.7192,148.78,148.74,6.7209]
[1745812916714,6.7192,148.78,148.73,24.44]
[1745812918016,24.44,148.81,148.73,24.44]
[1745812918220,11.51328882,148.79,148.7,24.44]
[1745812918723,6.7213,148.74,148.7,31.1627]
[1745812919523,6.7213,148.74,148.71,6.7222]
[1745812920422,6.7213,148.74,148.7,31.1626]
[1745812921019,6.7216,148.73,148.7,31.1626]
[1745812921323,6.7216,148.73,148.7,24.44]
[1745812921723,6.7216,148.73,148.7,31.1626]
[1745812921924,6.7211,148.74,148.7,31.1626]
[1745812922922,6.7206,148.75,148.71,6.7223]
[1745812923124,24.44,148.76,148.7,24.44]
[1745812923619,6.721,148.74,148.7,31.1624]
[1745812923824,24.44,148.76,148.7,24.44]
[1745812924122,31.1603,148.76,148.72,6.7216]
[1745812925023,6.7207,148.75,148.71,6.7219]
[1745812925522,31.1601,148.76,148.72,6.7215]
[1745812925928,6.7201,148.76,148.72,6.7215]
[1745812928225,6.7205,148.75,148.72,6.7215]
[1745812929528,6.7202,148.76,148.72,6.7215]
[1745812931524,24.44,148.82,148.72,11.51328882]
[1745812931828,6.7184,148.8,148.76,6.72]
[1745812932427,6.7184,148.8,148.75,6.7203]
[1745812932627,6.7184,148.8,148.74,24.44]
[1745812933131,6.7184,148.8,148.76,6.7198]
[1745812934225,6.718,148.81,148.77,6.7195]
[1745812934728,508.5,148.85,148.75,11.51328882]
[1745812935129,6.717,148.83,148.75,11.51328882]
[1745812935534,6.717,148.83,148.79,6.7186]
[1745812935922,6.7174,148.82,148.79,6.7186]
[1745812936431,7.18984403,148.84,148.75,7.18984403]
[1745812936730,7.18984403,148.82,148.74,24.44]
[1745812936931,7.18984403,148.8,148.74,24.44]
[1745812937329,7.18984403,148.78,148.74,24.44]
[1745812937527,7.18984403,148.78,148.71,24.44]
[1745812937932,6.7201,148.76,148.71,24.44]
[1745812938732,6.7198,148.77,148.73,6.7214]
[1745812939929,6.7198,148.77,148.71,31.62984403]
[1745812940132,14.50194403,148.8,148.75,6.7205]
[1745812940133,4.9874,148.8,148.75,6.7205]
[1745812941234,6.7188,148.79,148.75,6.7205]
[1745812943138,6.7183,148.8,148.76,6.72]
[1745812943333,31.62984403,148.83,148.75,24.44]
[1745812943739,24.44,148.83,148.76,7.18984403]
[1745812943941,31.62984403,148.83,148.75,24.44]
[1745812944436,6.7182,148.8,148.76,6.7197]
[1745812945739,6.7182,148.8,148.76,31.1597]
[1745812947538,6.7187,148.79,148.76,31.1597]
[1745812947839,31.62984403,148.83,148.76,31.1597]
[1745812948039,6.7185,148.8,148.76,31.1597]
[1745812948443,31.62984403,148.83,148.76,24.44]
[1745812949142,6.7178,148.81,148.76,24.44]
[1745812949441,4.8724,148.85,148.78,7.18984403]
[1745812950248,6.7172,148.83,148.79,6.7183]
[1745812950746,6.7157,148.86,148.8,7.18984403]
[1745812950941,24.44,148.9,148.82,7.18984403]
[1745812951342,6.7156,148.86,148.82,7.18984403]
[1745812951639,6.7156,148.86,148.81,31.1576]
[1745812952037,6.7156,148.86,148.82,6.7173]
[1745812952543,7.18984403,148.89,148.81,24.44]
[1745812952745,7.18984403,148.89,148.81,31.1575]
[1745812952945,6.7159,148.86,148.81,31.1575]
[1745812953545,6.716,148.85,148.81,31.1575]
[1745812953944,7.18984403,148.89,148.81,31.1575]
[1745812954346,7.18984403,148.85,148.81,24.44]
[1745812954643,7.18984403,148.85,148.78,24.42]
[1745812954843,6.7171,148.83,148.78,31.1388]
[1745812956148,6.7175,148.82,148.78,31.1388]
[1745812957147,6.717,148.83,148.79,6.7184]
[1745812957550,6.717,148.83,148.78,31.60984403]
[1745812957551,7.18984403,148.85,148.78,24.42]
[1745812958049,6.7176,148.82,148.78,31.1389]
[1745812958752,7.18984403,148.85,148.78,24.42]
[1745812958942,7.18984403,148.83,148.73,365.7104]
[1745812959245,7.18984403,148.83,148.76,6.72]
[1745812959442,9.58654403,148.85,148.76,7.18984403]
[1745812959857,6.7176,148.82,148.78,6.7189]
[1745812960150,9.58654403,148.85,148.76,7.18984403]
[1745812960341,6.7173,148.83,148.78,6.719]
[1745812960545,9.58654403,148.85,148.76,7.18984403]
[1745812960844,6.7176,148.82,148.77,6.7192]
[1745812961046,6.7176,148.82,148.76,7.18984403]
[1745812961549,6.7176,148.82,148.78,6.719]
[1745812962055,9.58654403,148.85,148.76,7.18984403]
[1745812962350,7.18984403,148.83,148.75,24.42]
[1745812962650,6.718,148.81,148.76,6.7197]
[1745812962950,7.18984403,148.83,148.76,6.7197]
[1745812963347,24.42,148.82,148.75,24.42]
[1745812963649,7.18984403,148.79,148.72,26.9477]
[1745812963950,7.18984403,148.79,148.72,24.42]
[1745812964151,24.42,148.78,148.72,24.42]
[1745812964448,6.7205,148.75,148.72,24.42]
[1745812965049,6.7202,148.76,148.72,24.42]
[1745812965549,24.42,148.78,148.72,24.42]
[1745812965751,24.42,148.78,148.69,508.16]
[1745812965752,7.18984403,148.77,148.69,508.16]
[1745812966050,10.99734403,148.77,148.69,24.42]
[1745812966251,6.7212,148.74,148.7,6.7227]
[1745812968051,6.7215,148.73,148.69,31.143]
[1745812968251,6.7215,148.73,148.69,24.42]
[1745812968649,6.7215,148.73,148.69,31.1428]
[1745812968850,6.7211,148.74,148.69,31.1428]
[1745812969153,10.99734403,148.77,148.69,31.1428]
[1745812969448,10.99734403,148.77,148.69,24.42]
[1745812970457,10.99734403,148.77,148.69,31.1431]
[1745812970859,6.7214,148.73,148.69,31.1431]
[1745812971058,24.44,148.74,148.68,7.18984403]
[1745812971253,24.44,148.74,148.66,31.62984403]
[1745812971459,6.7229,148.7,148.66,31.62984403]
[1745812971859,24.44,148.74,148.66,24.44]
[1745812972460,6.7235,148.69,148.66,24.44]
[1745812972865,6.7229,148.7,148.66,24.44]
[1745812973371,24.44,148.74,148.66,24.44]
[1745812973662,24.44,148.74,148.64,13.91514403]
[1745812974162,24.44,148.74,148.66,7.18984403]
[1745812974566,6.7228,148.7,148.66,13.91434403]
[1745812976067,6.7228,148.7,148.66,7.18984403]
[1745812976465,6.7233,148.69,148.66,7.18984403]
[1745812976969,6.7239,148.68,148.64,13.91514403]
[1745812977162,24.44,148.74,148.64,7.18984403]
[1745812977163,7.18984403,148.73,148.64,7.18984403]
[1745812977364,7.18984403,148.71,148.62,7.18984403]
[1745812977559,6.7248,148.66,148.62,7.18984403]
[1745812977868,28.4862,148.7,148.62,7.18984403]
[1745812978367,1.9811,148.7,148.64,7.18984403]
[1745812978569,24.44,148.71,148.66,7.18984403]
[1745812978765,6.723,148.7,148.66,7.18984403]
[1745812980067,6.7234,148.69,148.66,7.18984403]
[1745812980569,6.7234,148.69,148.65,6.725]
[1745812981075,24.44,148.71,148.65,6.725]
[1745812981076,6.7229,148.7,148.65,6.725]
[1745812981573,6.7232,148.69,148.65,6.725]
[1745812984775,31.1625,148.71,148.67,6.7241]
[1745812985267,6.7217,148.73,148.68,13.91314403]
[1745812985467,24.44,148.75,148.68,7.18984403]
[1745812985977,24.44,148.75,148.7,6.7227]
[1745812985978,6.7212,148.74,148.7,6.7227]
[1745812986176,24.44,148.75,148.68,7.18984403]
[1745812986671,24.44,148.75,148.67,3.9905]
[1745812986874,31.62984403,148.75,148.67,3.9905]
[1745812987272,24.44,148.75,148.69,6.7229]
[1745812987676,24.44,148.75,148.68,7.18984403]
[1745812987974,24.44,148.78,148.7,7.18984403]
[1745812988474,6.7205,148.75,148.71,6.722]
[1745812989871,24.44,148.78,148.69,31.62984403]
[1745812990175,7.18984403,148.77,148.69,24.44]
[1745812990374,7.18984403,148.77,148.7,6.7227]
[1745812990771,24.44,148.78,148.7,7.18984403]
[1745812990967,24.44,148.78,148.72,6.7217]
[1745812991482,24.44,148.78,148.73,6.7213]
[1745812991672,24.44,148.81,148.74,7.18984403]
[1745812992076,31.158,148.81,148.74,13.13034403]
[1745812992272,31.158,148.81,148.76,6.7197]
[1745812993378,31.158,148.81,148.75,6.7203]
[1745812993980,6.718,148.81,148.75,6.7203]
[1745812994376,7.18984403,148.83,148.76,6.72]
[1745812994573,3.9718,148.86,148.78,7.18984403]
[1745812994777,3.9718,148.86,148.78,13.90884403]
[1745812995085,6.7169,148.83,148.78,13.90884403]
[1745812995380,11.16164403,148.86,148.78,13.90884403]
[1745812995579,6.7171,148.83,148.78,13.90884403]
[1745812996181,11.16164403,148.86,148.78,13.90884403]
[1745812997784,6.7172,148.83,148.78,13.90884403]
[1745812998188,11.16164403,148.86,148.78,7.18984403]
[1745812998377,3.9718,148.86,148.78,7.18984403]
[1745812998579,24.44,148.87,148.8,7.18984403]
[1745812998779,24.44,148.87,148.81,31.1576]
[1745812999488,6.716,148.85,148.81,31.1576]
[1745812999683,24.44,148.87,148.81,31.1576]
[1745813000487,6.7158,148.86,148.81,31.1576]
[1745813002184,6.716,148.85,148.81,24.44]
[1745813002392,31.62984403,148.87,148.81,24.44]
[1745813003487,6.7165,148.84,148.81,24.44]
[1745813007899,6.7169,148.83,148.81,24.44]
[1745813008497,24.44,148.87,148.81,24.44]
[1745813008798,1.9588,148.88,148.81,24.44]
[1745813008994,508.42,148.9,148.84,6.7164]
[1745813009296,508.42,148.9,148.82,7.18984403]
[1745813009297,508.42,148.9,148.82,11.17754403]
[1745813009598,6.7149,148.88,148.83,6.7167]
[1745813010398,6.7151,148.87,148.82,17.89474403]
[1745813010790,6.7156,148.86,148.82,17.89474403]
[1745813011196,515.60984403,148.9,148.82,11.17754403]
[1745813011396,6.7159,148.86,148.82,11.17754403]
[1745813011997,6.7161,148.85,148.82,11.17754403]
[1745813012191,515.60984403,148.9,148.81,24.44]
[1745813012593,6.7164,148.85,148.81,24.44]
[1745813013598,6.7169,148.84,148.81,24.44]
[1745813013895,7.18984403,148.88,148.78,7.18984403]
[1745813014093,6.7186,148.8,148.78,24.42]
[1745813014299,7.18984403,148.82,148.75,6.7201]
[1745813014611,31.60984403,148.82,148.75,6.7201]
[1745813014799,6.7192,148.78,148.74,26.3217]
[1745813015600,6.7189,148.79,148.74,33.0426]
[1745813016101,6.7189,148.79,148.74,26.3217]
[1745813016701,6.7189,148.79,148.74,33.0425]
[1745813018402,6.7192,148.78,148.74,33.0425]
[1745813018800,6.7192,148.78,148.74,31.1408]
[1745813019003,6.7197,148.77,148.74,24.42]
[1745813019204,7.18984403,148.8,148.74,24.42]
[1745813019404,6.7193,148.78,148.74,31.1408]
[1745813019705,7.18984403,148.8,148.74,31.1408]
[1745813020299,6.719,148.79,148.74,31.1408]
[1745813020803,31.60984403,148.82,148.74,24.42]
[1745813020804,6.7191,148.78,148.74,24.42]
[1745813021103,31.60984403,148.82,148.74,24.42]
[1745813021507,31.60984403,148.82,148.75,6.7204]
[1745813021708,24.42,148.82,148.75,7.18984403]
[1745813022105,6.7185,148.8,148.75,13.91004403]
[1745813022507,6.7188,148.79,148.75,13.91004403]
[1745813022711,6.7188,148.79,148.74,31.1408]
[1745813023608,6.7183,148.8,148.75,6.7204]
[1745813026512,6.7188,148.79,148.75,6.7204]
[1745813026709,6.7188,148.79,148.74,31.1408]
[1745813026910,6.7188,148.79,148.74,24.42]
[1745813027814,6.7188,148.79,148.75,6.7202]
[1745813029018,6.7188,148.79,148.76,6.72]
[1745813029515,6.7188,148.79,148.77,4.60327797]
[1745813030015,6.7188,148.79,148.76,6.72]
[1745813030312,6.7188,148.79,148.77,4.60327797]
[1745813030514,6.7191,148.78,148.77,4.60327797]
[1745813030712,6.7191,148.78,148.76,4.60327797]
[1745813031414,6.7189,148.79,148.76,4.60327797]
[1745813031711,6.7189,148.79,148.74,31.1406]
[1745813031917,4.60327797,148.81,148.76,4.60327797]
[1745813033320,6.7191,148.79,148.76,4.60327797]
[1745813034218,6.7184,148.8,148.76,4.60327797]
[1745813035620,6.7184,148.8,148.76,11.32317797]
[1745813037323,6.7184,148.8,148.76,4.60327797]
[1745813038126,6.7188,148.79,148.76,4.60327797]
[1745813038421,4.60327797,148.81,148.76,4.60327797]
[1745813038629,4.60327797,148.77,148.72,4.60327797]
[1745813038819,4.60327797,148.77,148.73,4.60327797]
[1745813039118,4.60327797,148.78,148.73,11.32457797]
[1745813039327,11.32267797,148.78,148.73,11.32457797]
[1745813039729,4.60327797,148.78,148.73,11.32457797]
[1745813039928,6.7198,148.77,148.73,11.32457797]
[1745813040126,6.7198,148.77,148.72,6.7217]
[1745813040327,4.60327797,148.78,148.73,4.60327797]
[1745813040530,6.7204,148.76,148.73,4.60327797]
[1745813041926,4.60327797,148.78,148.74,4.60327797]
[1745813042127,4.60327797,148.81,148.76,4.60327797]
[1745813043229,6.7184,148.8,148.76,11.32317797]
[1745813047732,6.7184,148.8,148.76,4.60327797]
[1745813048634,6.7184,148.8,148.76,11.32327797]
[1745813049338,6.7188,148.79,148.76,4.60327797]
[1745813050037,6.7184,148.8,148.76,4.60327797]
[1745813051939,6.7184,148.8,148.76,11.32327797]
[1745813057339,6.7184,148.8,148.76,6.72]
[1745813057545,6.7184,148.8,148.76,11.32327797]
[1745813060442,11.32117797,148.81,148.77,6.7193]
[1745813060941,6.7183,148.8,148.76,11.32317797]
[1745813061149,11.32157797,148.8,148.76,11.32317797]
[1745813061848,6.7183,148.8,148.76,11.32317797]
[1745813062048,24.42,148.82,148.78,4.60327797]
[1745813062247,30.96767797,148.86,148.81,4.60327797]
[1745813062644,4.60327797,148.85,148.8,4.60327797]
[1745813062847,4.60327797,148.81,148.75,1.99]
[1745813063143,11.32187797,148.8,148.76,11.32317797]
[1745813063340,11.32187797,148.8,148.76,4.60327797]
[1745813064552,6.7187,148.79,148.76,4.60327797]
[1745813064849,4.60327797,148.8,148.76,4.60327797]
[1745813067548,11.32187797,148.8,148.76,11.32327797]
[1745813071350,4.60327797,148.8,148.75,1.99]
[1745813071553,6.7205,148.75,148.71,31.1422]
[1745813072055,6.7205,148.75,148.71,24.42]
[1745813074157,6.721,148.74,148.71,24.42]
[1745813076155,6.7207,148.75,148.71,35.74547797]
[1745813076355,6.7207,148.75,148.72,4.60327797]
[1745813076853,4.60327797,148.81,148.74,4.60327797]
[1745813077054,4.60327797,148.81,148.76,4.60327797]
[1745813077456,6.7185,148.8,148.76,11.32327797]
[1745813077657,4.60327797,148.81,148.76,11.32327797]
[1745813077857,6.7184,148.8,148.77,4.60327797]
[1745813078456,31.1376,148.82,148.79,4.60327797]
[1745813078658,6.7176,148.82,148.79,4.60327797]
[1745813079058,11.32027797,148.83,148.79,4.60327797]
[1745813079258,4.60327797,148.84,148.8,4.60327797]
[1745813079459,4.60327797,148.84,148.8,11.32127797]
[1745813079759,29.02327797,148.87,148.83,4.60327797]
[1745813080459,6.7156,148.86,148.83,4.60327797]
[1745813080659,29.02327797,148.87,148.83,4.60327797]
[1745813081858,35.73867797,148.87,148.83,4.60327797]
[1745813082459,6.7157,148.86,148.83,4.60327797]
[1745813082655,6.7157,148.86,148.82,11.32027797]
[1745813082861,4.60327797,148.86,148.82,4.60327797]
[1745813083159,11.31897797,148.86,148.82,4.60327797]
[1745813083659,6.7157,148.86,148.82,11.32047797]
[1745813083855,35.73847797,148.87,148.82,11.32047797]
[1745813084061,31.1352,148.87,148.83,4.60327797]
[1745813084761,6.7152,148.87,148.83,4.60327797]
[1745813084957,6.7148,148.88,148.84,4.60327797]
[1745813085160,4.60327797,148.92,148.87,4.60327797]
[1745813085360,4.60327797,148.92,148.88,4.60327797]
[1745813085656,6.7134,148.91,148.86,6.7151]
[1745813086162,24.42,148.94,148.89,7.18195683]
[1745813086365,508.2,148.97,148.89,31.60195683]
[1745813086762,7.18195683,148.98,148.89,31.60195683]
[1745813086963,7.18195683,148.98,148.89,38.31585683]
[1745813087162,31.60195683,149.0,148.91,7.18195683]
[1745813087763,6.7109,148.97,148.92,6.7127]
[1745813088063,6.711,148.96,148.92,6.7127]
[1745813088459,7.18195683,148.96,148.89,24.42]
[1745813088762,6.7138,148.9,148.85,31.60195683]
[1745813089156,7.18195683,148.92,148.85,24.42]
[1745813089357,31.60195683,148.92,148.85,24.42]
[1745813089856,6.7143,148.89,148.85,24.42]
[1745813090864,38.31495683,148.92,148.85,31.60195683]
[1745813091064,3.9821,148.94,148.87,7.18195683]
[1745813091463,6.7129,148.92,148.87,7.18195683]
[1745813092064,6.7133,148.91,148.87,7.18195683]
[1745813092263,6.7133,148.91,148.86,6.7153]
[1745813092663,7.18195683,148.92,148.85,24.42]
[1745813093666,7.18195683,148.9,148.85,24.42]
[1745813093867,7.18195683,148.9,148.82,24.4]
[1745813095166,7.18195683,148.9,148.82,31.1173]
[1745813096072,6.7153,148.87,148.83,6.7168]
[1745813096664,6.7148,148.88,148.82,24.4]
[1745813096871,24.4,148.91,148.83,7.18195683]
[1745813097366,6.714,148.9,148.85,6.7156]
[1745813097570,24.4,148.91,148.85,6.7156]
[1745813097867,7.18195683,148.9,148.82,31.1169]
[1745813098263,7.18195683,148.88,148.82,24.4]
[1745813098459,6.716,148.85,148.82,24.4]
[1745813098668,6.716,148.85,148.81,6.7176]
[1745813099572,24.4,148.91,148.83,7.18195683]
[1745813099870,24.4,148.91,148.83,31.64195683]
[1745813100171,6.7143,148.89,148.84,6.7163]
[1745813100373,6.7143,148.89,148.83,31.64195683]
[1745813101170,6.7146,148.88,148.83,31.64195683]
[1745813101673,6.7146,148.88,148.84,6.716]
[1745813101868,24.4,148.91,148.83,31.64195683]
[1745813102166,24.4,148.91,148.85,7.18195683]
[1745813102368,6.7134,148.91,148.85,7.18195683]
[1745813103274,6.7134,148.91,148.87,6.7146]
[1745813103675,6.7134,148.91,148.85,7.18195683]
[1745813103871,6.7134,148.91,148.87,7.18195683]
[1745813104174,28.4421,148.94,148.88,6.7145]
[1745813104175,6.713,148.92,148.88,6.7145]
[1745813104572,490.76195683,148.97,148.87,31.64195683]
[1745813104771,6.7127,148.93,148.89,6.7141]
[1745813106479,6.7129,148.92,148.88,6.7145]
[1745813106778,7.18195683,148.93,148.87,24.46]
[1745813106978,6.7127,148.93,148.88,6.7145]
[1745813107178,24.46,148.96,148.88,7.18195683]
[1745813107679,6.7121,148.94,148.9,6.7137]
[1745813107883,4.0395,148.98,148.9,7.18195683]
[1745813108282,6.7111,148.96,148.92,6.7125]
[1745813108483,7.18195683,148.97,148.88,11.16365683]
[1745813108783,6.7124,148.93,148.88,17.87785683]
[1745813109586,6.7124,148.93,148.89,6.7141]
[1745813110079,6.7121,148.94,148.89,6.7141]
[1745813110274,7.18195683,148.97,148.88,11.16365683]
[1745813110483,4.0395,148.98,148.9,7.18195683]
[1745813110884,4.0395,148.98,148.93,6.712]
[1745813111087,6.7108,148.97,148.92,7.18195683]
[1745813111282,4.0395,148.98,148.92,7.18195683]
[1745813111483,4.0395,148.98,148.93,6.7121]
[1745813111683,6.7107,148.97,148.93,6.7121]
[1745813111989,6.7107,148.97,148.91,24.46]
[1745813112387,10.7498,148.98,148.93,6.7121]
[1745813112588,4.0395,148.98,148.93,6.7121]
[1745813112885,4.0395,148.98,148.91,24.46]
[1745813113487,6.7111,148.96,148.91,31.1731]
[1745813113686,7.18195683,148.97,148.91,24.46]
[1745813113888,4.0395,148.98,148.88,28.4417]
[1745813113889,7.18195683,148.95,148.88,28.4417]
[1745813115085,31.64195683,148.95,148.85,26.3539]
[1745813115382,7.18195683,148.89,148.82,24.46]
[1745813115783,7.18195683,148.89,148.82,31.64195683]
[1745813115986,24.46,148.94,148.86,7.18195683]
[1745813116187,24.46,148.94,148.86,31.64195683]
[1745813116888,24.46,148.94,148.88,6.7144]
[1745813118289,6.7128,148.92,148.88,6.7144]
[1745813118892,6.7134,148.91,148.87,6.7149]
[1745813119787,6.713,148.92,148.87,6.7149]
[1745813121594,6.7138,148.9,148.86,31.1754]
[1745813122188,6.7134,148.91,148.86,31.1754]
[1745813122684,6.7138,148.9,148.86,24.46]
[1745813122889,24.46,148.94,148.86,24.46]
[1745813123290,6.7137,148.9,148.86,24.46]
[1745813123593,11.49289731,148.93,148.83,35.95289731]
[1745813123790,6.7149,148.88,148.83,24.46]
[1745813125085,6.7149,148.88,148.84,6.7161]
[1745813125286,3.8041,148.92,148.83,35.95289731]
[1745813125492,24.46,148.94,148.83,35.95289731]
[1745813126288,6.7129,148.92,148.88,6.7143]
[1745813127093,6.7133,148.91,148.87,6.7149]
[1745813127391,24.46,148.94,148.83,24.46]
[1745813127593,6.7139,148.9,148.86,6.7155]
[1745813127788,24.46,148.94,148.83,24.46]
[1745813127991,11.49289731,148.91,148.83,24.46]
[1745813128392,28.4483,148.9,148.83,24.46]
[1745813128792,24.46,148.9,148.83,24.46]
[1745813129292,6.715,148.88,148.83,31.1767]
[1745813129591,24.46,148.9,148.83,31.1767]
[1745813129896,6.7149,148.88,148.84,6.7163]
[1745813130192,24.46,148.9,148.83,24.46]
[1745813130590,3.9883,148.89,148.8,26.3583]
[1745813130994,24.46,148.9,148.81,11.49289731]
[1745813131495,24.4,148.93,148.81,11.49289731]
[1745813131795,6.714,148.9,148.81,11.49289731]
[1745813132097,24.4,148.93,148.81,11.49289731]
[1745813132392,6.7143,148.89,148.84,6.7161]
[1745813132590,6.7143,148.89,148.84,24.4]
[1745813134300,6.7143,148.89,148.85,6.7156]
[1745813134996,24.4,148.93,148.84,24.4]
[1745813135195,35.89289731,148.93,148.84,24.4]
[1745813135598,35.89289731,148.93,148.84,31.116]
[1745813136003,35.89289731,148.93,148.84,24.4]
[1745813136595,35.89289731,148.93,148.84,28.4007]
[1745813137098,35.89289731,148.93,148.84,24.4]
[1745813138694,6.7154,148.87,148.84,24.4]
[1745813139899,35.89289731,148.93,148.84,31.1161]
[1745813140200,24.4,148.93,148.84,24.4]
[1745813140395,6.7145,148.89,148.84,31.1163]
[1745813141001,6.7145,148.89,148.85,6.716]
[1745813141702,6.7139,148.9,148.85,6.716]
[1745813142101,6.7142,148.89,148.85,6.716]
[1745813143505,6.7142,148.89,148.84,31.1162]
[1745813144402,6.7147,148.88,148.84,31.1162]
[1745813146903,7.18413687,148.92,148.84,24.4]
[1745813147202,6.7143,148.89,148.85,6.7159]
[1745813148302,6.7148,148.88,148.84,31.1162]
[1745813148505,7.18413687,148.88,148.8,1.9583]
[1745813149007,7.18413687,148.88,148.8,8.6764]
[1745813149300,7.18413687,148.86,148.8,1.9583]
[1745813149500,7.18413687,148.84,148.79,24.4]
[1745813149805,7.18413687,148.82,148.76,24.4]
[1745813150004,6.7185,148.8,148.76,24.4]
[1745813150305,7.18413687,148.82,148.76,24.4]
[1745813150704,6.7189,148.79,148.76,24.4]
[1745813150999,7.18413687,148.82,148.75,7.67100733]
[1745813151303,24.4,148.81,148.74,5.9691]
[1745813152105,6.7187,148.79,148.74,5.9691]
[1745813152307,24.4,148.81,148.74,5.9691]
[1745813153206,6.719,148.79,148.74,12.6897]
[1745813153607,6.719,148.79,148.74,5.9691]
[1745813154401,6.719,148.79,148.75,6.7204]
[1745813155505,24.4,148.81,148.74,5.9691]
[1745813155506,6.7192,148.78,148.74,12.6899]
[1745813155707,6.7192,148.78,148.74,5.9691]
[1745813156209,6.7188,148.79,148.75,6.7205]
[1745813156808,24.4,148.81,148.74,5.9691]
[1745813157107,24.4,148.81,148.74,13.15323687]
[1745813157601,24.42,148.84,148.76,7.18413687]
[1745813157807,24.42,148.84,148.77,24.42]
[1745813158403,7.18413687,148.86,148.78,7.18413687]
[1745813158608,24.42,148.86,148.78,7.18413687]
[1745813158908,6.7161,148.85,148.81,6.7175]
[1745813159202,26.3303,148.87,148.78,7.18413687]
[1745813159409,6.7155,148.87,148.82,6.717]
[1745813160908,6.7155,148.86,148.82,6.717]
[1745813161111,31.60413687,148.88,148.78,7.18413687]
[1745813161308,31.60413687,148.88,148.77,24.42]
[1745813161309,7.18413687,148.86,148.77,26.3284]
[1745813161610,7.18413687,148.86,148.78,7.18413687]
[1745813161808,6.7161,148.85,148.78,7.18413687]
[1745813162606,6.7161,148.85,148.8,6.7182]
[1745813162807,6.7165,148.84,148.8,6.7182]
[1745813163110,31.60413687,148.88,148.78,7.18413687]
[1745813163708,6.7161,148.85,148.81,6.7175]
[1745813164312,6.7161,148.85,148.8,6.7181]
[1745813165012,6.7161,148.85,148.81,6.7178]
[1745813166207,6.7157,148.86,148.81,6.7178]
[1745813166412,31.60413687,148.88,148.82,7.18413687]
[1745813166413,24.42,148.88,148.82,7.18413687]
[1745813167114,31.1348,148.88,148.83,6.7168]
[1745813168013,6.7148,148.88,148.84,6.7164]
[1745813168312,6.7148,148.88,148.82,7.18413687]
[1745813168513,6.7148,148.88,148.83,6.7165]
[1745813169015,6.7148,148.88,148.82,7.18413687]
[1745813169216,6.7148,148.88,148.83,6.7168]
[1745813170217,24.42,148.9,148.84,7.18413687]
[1745813170516,1.9976,148.91,148.84,7.18413687]
[1745813171112,6.714,148.9,148.85,6.7158]
[1745813173216,6.7142,148.89,148.85,6.7158]
[1745813175118,6.7139,148.9,148.85,6.7158]
[1745813175720,9.18173687,148.91,148.82,11.06653687]
[1745813176514,9.18173687,148.91,148.82,17.78363687]
[1745813177619,6.7154,148.87,148.82,17.78363687]
[1745813178916,7.18413687,148.89,148.82,10.5995]
[1745813179121,7.18413687,148.89,148.82,6.7171]
[1745813179621,6.7154,148.87,148.82,6.7171]
[1745813179823,6.7154,148.87,148.81,24.42]
[1745813179824,7.18413687,148.89,148.81,24.42]
[1745813180121,24.4,148.88,148.81,24.42]
[1745813180321,26.331,148.88,148.81,24.42]
[1745813181417,6.7163,148.85,148.81,24.42]
[1745813181923,6.7163,148.85,148.81,31.1378]
[1745813182322,7.18413687,148.87,148.81,24.42]